[Event "*** Titled Tuesday Blitz"]
[Site "Chess.com"]
[Date "2020.04.28"]
[Round "7"]
[White "Sychev_Klementy"]
[Black "Zkid"]
[Result "1-0"]
[WhiteElo "2886"]
[BlackElo "2814"]
[TimeControl "180+1"]
[EndTime "11:16:05 PDT"]
[Termination "Sychev_Klementy won by resignation"]

1. e4 {[%clk 0:03:00.9]} 1... e6 {[%clk 0:02:59]} 2. d4 {[%clk 0:03:00.6]} 2...
d5 {[%clk 0:02:59.2]} 3. Nc3 {[%clk 0:02:58.1]} 3... Bb4 {[%clk 0:02:59.1]} 4.
e5 {[%clk 0:02:58.1]} 4... c5 {[%clk 0:02:59.2]} 5. a3 {[%clk 0:02:58.5]} 5...
Bxc3+ {[%clk 0:02:59.6]} 6. bxc3 {[%clk 0:02:58.9]} 6... Qa5 {[%clk 0:03:00.2]}
7. Bd2 {[%clk 0:02:58.5]} 7... Qa4 {[%clk 0:03:00.6]} 8. Qg4 {[%clk 0:02:57.9]}
8... Kf8 {[%clk 0:03:00.8]} 9. h4 {[%clk 0:02:52.2]} 9... Qxc2 {[%clk 0:02:59]}
10. Rc1 {[%clk 0:02:39.7]} 10... Qg6 {[%clk 0:02:52]} 11. Qf3 {[%clk 0:02:23.6]}
11... Nc6 {[%clk 0:02:45.7]} 12. Bd3 {[%clk 0:02:11.9]} 12... f5 {[%clk
0:02:42.1]} 13. h5 {[%clk 0:01:44.4]} 13... Qg4 {[%clk 0:02:31.8]} 14. Qxg4
{[%clk 0:01:42.7]} 14... fxg4 {[%clk 0:02:32.7]} 15. Rh4 {[%clk 0:01:30.8]}
15... Nh6 {[%clk 0:02:30.2]} 16. Bxh6 {[%clk 0:01:22.5]} 16... gxh6 {[%clk
0:02:31.1]} 17. Rxg4 {[%clk 0:01:22.8]} 17... Bd7 {[%clk 0:02:19.5]} 18. Nf3
{[%clk 0:01:11.3]} 18... cxd4 {[%clk 0:02:14.6]} 19. cxd4 {[%clk 0:01:10.1]}
19... Be8 {[%clk 0:02:14.6]} 20. Rf4+ {[%clk 0:01:03.9]} 20... Kg7 {[%clk
0:02:12.4]} 21. g4 {[%clk 0:00:58.1]} 21... Bd7 {[%clk 0:02:07.2]} 22. Kd2
{[%clk 0:00:54.6]} 22... Rhf8 {[%clk 0:02:06.4]} 23. Rxf8 {[%clk 0:00:54.4]}
23... Rxf8 {[%clk 0:02:07.3]} 24. Ke3 {[%clk 0:00:54.8]} 24... Rc8 {[%clk
0:02:03.6]} 25. g5 {[%clk 0:00:53.4]} 25... Nxe5 {[%clk 0:01:50]} 26. Rxc8
{[%clk 0:00:46.7]} 26... Ng4+ {[%clk 0:01:49.5]} 27. Kf4 {[%clk 0:00:46.1]}
27... Bxc8 {[%clk 0:01:50.3]} 28. Kxg4 {[%clk 0:00:46.2]} 28... e5+ {[%clk
0:01:50.7]} 29. Bf5 {[%clk 0:00:46.4]} 29... Bxf5+ {[%clk 0:01:48.6]} 30. Kxf5
{[%clk 0:00:46.3]} 30... exd4 {[%clk 0:01:47.6]} 31. Nxd4 {[%clk 0:00:46.3]}
31... hxg5 {[%clk 0:01:48.3]} 32. Kxg5 {[%clk 0:00:46.5]} 32... a6 {[%clk
0:01:48.7]} 33. h6+ {[%clk 0:00:45]} 33... Kf7 {[%clk 0:01:48.6]} 34. Kf5 {[%clk
0:00:45.4]} 34... b5 {[%clk 0:01:48.7]} 35. f4 {[%clk 0:00:44.8]} 35... Ke7
{[%clk 0:01:46]} 36. Ke5 {[%clk 0:00:45]} 1-0

[Event "*** Titled Tuesday Blitz"]
[Site "Chess.com"]
[Date "2020.04.28"]
[Round "7"]
[White "Blitzking642"]
[Black "Caterpiller35"]
[Result "0-1"]
[WhiteElo "2306"]
[BlackElo "2307"]
[TimeControl "180+1"]
[EndTime "11:16:07 PDT"]
[Termination "Caterpiller35 won by resignation"]

1. d4 {[%clk 0:03:00.9]} 1... Nf6 {[%clk 0:02:58.2]} 2. c4 {[%clk 0:03:01.2]}
2... e6 {[%clk 0:02:58.5]} 3. Nc3 {[%clk 0:03:01.3]} 3... Bb4 {[%clk 0:02:59]}
4. Qc2 {[%clk 0:03:01.7]} 4... O-O {[%clk 0:02:57.8]} 5. a3 {[%clk 0:02:59.6]}
5... Bxc3+ {[%clk 0:02:57.4]} 6. Qxc3 {[%clk 0:03:00.5]} 6... d5 {[%clk
0:02:57.6]} 7. Bf4 {[%clk 0:02:55.4]} 7... Ne4 {[%clk 0:02:56.1]} 8. Qc2 {[%clk
0:02:53.3]} 8... c5 {[%clk 0:02:56.2]} 9. dxc5 {[%clk 0:02:51]} 9... Nc6 {[%clk
0:02:54.5]} 10. e3 {[%clk 0:02:46.5]} 10... Qa5+ {[%clk 0:02:51.6]} 11. Kd1
{[%clk 0:02:34.9]} 11... Nb4 {[%clk 0:02:30.3]} 12. Qb1 {[%clk 0:02:06.6]} 12...
Nxf2+ {[%clk 0:02:17]} 13. Ke2 {[%clk 0:02:02.6]} 13... Nxh1 {[%clk 0:02:16.4]}
14. axb4 {[%clk 0:02:02.1]} 14... Qxb4 {[%clk 0:02:16.4]} 15. Bd6 {[%clk
0:01:57.4]} 15... Qxc4+ {[%clk 0:01:51.1]} 16. Qd3 {[%clk 0:01:53]} 16... Qxd3+
{[%clk 0:01:45.5]} 17. Kxd3 {[%clk 0:01:53.1]} 17... Nf2+ {[%clk 0:01:46.1]} 18.
Ke2 {[%clk 0:01:53.3]} 18... Ne4 {[%clk 0:01:44.9]} 19. Bxf8 {[%clk 0:01:53]}
19... Kxf8 {[%clk 0:01:45.8]} 20. Nf3 {[%clk 0:01:51.7]} 20... f6 {[%clk
0:01:44.6]} 21. Nd4 {[%clk 0:01:50.8]} 21... Ke7 {[%clk 0:01:44.7]} 22. b4
{[%clk 0:01:48.2]} 22... Bd7 {[%clk 0:01:40.8]} 23. Ke1 {[%clk 0:01:43.9]} 23...
e5 {[%clk 0:01:38.4]} 24. Nb5 {[%clk 0:01:43.7]} 24... Bxb5 {[%clk 0:01:37.6]}
25. Bxb5 {[%clk 0:01:43]} 25... a6 {[%clk 0:01:34.4]} 26. Bd3 {[%clk 0:01:42.8]}
26... Rc8 {[%clk 0:01:26.7]} 27. Ke2 {[%clk 0:01:40.6]} 27... f5 {[%clk
0:01:18.2]} 28. Rf1 {[%clk 0:01:34.5]} 28... g6 {[%clk 0:01:15.4]} 29. Rg1
{[%clk 0:01:33.6]} 29... h5 {[%clk 0:01:14.5]} 30. g3 {[%clk 0:01:31.2]} 30...
a5 {[%clk 0:01:11.2]} 31. bxa5 {[%clk 0:01:31.1]} 31... Rxc5 {[%clk 0:01:08.7]}
32. Rb1 {[%clk 0:01:29.2]} 32... Nc3+ {[%clk 0:01:08.2]} 0-1

[Event "*** Titled Tuesday Blitz"]
[Site "Chess.com"]
[Date "2020.04.28"]
[Round "7"]
[White "BillieKimbah"]
[Black "ftorodent"]
[Result "1-0"]
[WhiteElo "2850"]
[BlackElo "2677"]
[TimeControl "180+1"]
[EndTime "11:16:08 PDT"]
[Termination "BillieKimbah won by resignation"]

1. d4 {[%clk 0:03:00.9]} 1... d5 {[%clk 0:02:59.5]} 2. c4 {[%clk 0:03:00.6]}
2... e6 {[%clk 0:02:59.8]} 3. Nf3 {[%clk 0:03:00.7]} 3... Nf6 {[%clk 0:02:59.1]}
4. g3 {[%clk 0:03:00.9]} 4... Be7 {[%clk 0:02:59.3]} 5. Bg2 {[%clk 0:03:00.8]}
5... O-O {[%clk 0:02:59.8]} 6. Qc2 {[%clk 0:03:00.7]} 6... c5 {[%clk 0:02:53.7]}
7. dxc5 {[%clk 0:03:00.7]} 7... Na6 {[%clk 0:02:53.4]} 8. O-O {[%clk 0:02:55.2]}
8... dxc4 {[%clk 0:02:49]} 9. Qxc4 {[%clk 0:02:52]} 9... Nxc5 {[%clk 0:02:46.6]}
10. Nc3 {[%clk 0:02:50.9]} 10... a6 {[%clk 0:02:39.1]} 11. Rd1 {[%clk 0:02:49]}
11... Qe8 {[%clk 0:02:26.6]} 12. b4 {[%clk 0:02:28.5]} 12... Na4 {[%clk
0:02:06.4]} 13. Ne5 {[%clk 0:02:08.6]} 13... b5 {[%clk 0:01:48]} 14. Qb3 {[%clk
0:02:07.3]} 14... Nxc3 {[%clk 0:01:47.8]} 15. Qxc3 {[%clk 0:02:08.2]} 15... Nd5
{[%clk 0:01:47.3]} 16. Bxd5 {[%clk 0:02:06.4]} 16... exd5 {[%clk 0:01:47.6]} 17.
Bb2 {[%clk 0:02:06.1]} 17... Be6 {[%clk 0:01:37.4]} 18. Nd7 {[%clk 0:02:03.6]}
18... f6 {[%clk 0:01:31.8]} 19. Nxf8 {[%clk 0:02:02.4]} 19... Qxf8 {[%clk
0:01:31.1]} 20. a3 {[%clk 0:02:02.1]} 20... Rc8 {[%clk 0:01:30.5]} 21. Qe3
{[%clk 0:02:01.1]} 21... Qf7 {[%clk 0:01:24]} 22. Rac1 {[%clk 0:02:00.7]} 22...
Rc4 {[%clk 0:01:24.1]} 23. Rxc4 {[%clk 0:02:00.6]} 23... dxc4 {[%clk 0:01:24.3]}
24. Bd4 {[%clk 0:01:52.9]} 24... h6 {[%clk 0:01:06.7]} 25. Bc5 {[%clk
0:01:52.4]} 25... Bxc5 {[%clk 0:01:04.5]} 26. Qxc5 {[%clk 0:01:51.5]} 26... Bg4
{[%clk 0:00:53.6]} 27. f3 {[%clk 0:01:50.9]} 27... Bh5 {[%clk 0:00:53.8]} 28.
Rd8+ {[%clk 0:01:41.5]} 28... Kh7 {[%clk 0:00:53.7]} 29. Rf8 {[%clk 0:01:37.5]}
29... Qe6 {[%clk 0:00:48.7]} 30. Qxh5 {[%clk 0:01:35.4]} 1-0

[Event "*** Titled Tuesday Blitz"]
[Site "Chess.com"]
[Date "2020.04.28"]
[Round "7"]
[White "wild_cat99"]
[Black "Gareth-Bale11"]
[Result "1-0"]
[WhiteElo "2574"]
[BlackElo "2729"]
[TimeControl "180+1"]
[EndTime "11:16:11 PDT"]
[Termination "wild_cat99 won by checkmate"]

1. Nf3 {[%clk 0:03:00.9]} 1... d5 {[%clk 0:01:27.3]} 2. e3 {[%clk 0:02:59.2]}
2... Nf6 {[%clk 0:01:26.8]} 3. c4 {[%clk 0:02:59.2]} 3... e6 {[%clk 0:01:25.6]}
4. b3 {[%clk 0:02:58.6]} 4... b6 {[%clk 0:01:19.5]} 5. Bb2 {[%clk 0:02:58.7]}
5... Bb7 {[%clk 0:01:19.4]} 6. g3 {[%clk 0:02:58.2]} 6... Be7 {[%clk 0:01:17.9]}
7. Bg2 {[%clk 0:02:58.6]} 7... O-O {[%clk 0:01:10.8]} 8. O-O {[%clk 0:02:58.7]}
8... c5 {[%clk 0:01:11.2]} 9. cxd5 {[%clk 0:02:55.2]} 9... exd5 {[%clk
0:01:10.8]} 10. d4 {[%clk 0:02:54.7]} 10... Nbd7 {[%clk 0:01:09.8]} 11. dxc5
{[%clk 0:02:54.5]} 11... bxc5 {[%clk 0:01:09.5]} 12. Nc3 {[%clk 0:02:51]} 12...
Nb6 {[%clk 0:01:09.7]} 13. Qd2 {[%clk 0:02:44.9]} 13... Re8 {[%clk 0:01:03.9]}
14. Rfd1 {[%clk 0:02:45]} 14... Rc8 {[%clk 0:01:00.6]} 15. Rac1 {[%clk
0:02:35.8]} 15... Qc7 {[%clk 0:01:00.6]} 16. Ne2 {[%clk 0:02:29.9]} 16... Ne4
{[%clk 0:00:57.4]} 17. Qd3 {[%clk 0:02:25.7]} 17... Qb8 {[%clk 0:00:56.4]} 18.
Ne5 {[%clk 0:02:11.1]} 18... f6 {[%clk 0:00:51.5]} 19. Nf3 {[%clk 0:02:05.1]}
19... Qa8 {[%clk 0:00:45.2]} 20. Nf4 {[%clk 0:01:55.6]} 20... a5 {[%clk
0:00:42.8]} 21. Bh3 {[%clk 0:01:34.2]} 21... Rcd8 {[%clk 0:00:36.9]} 22. Be6+
{[%clk 0:01:34.1]} 22... Kh8 {[%clk 0:00:36.4]} 23. Qf1 {[%clk 0:01:30.1]} 23...
Bc8 {[%clk 0:00:28.6]} 24. Ng6+ {[%clk 0:01:30]} 24... hxg6 {[%clk 0:00:27.6]}
25. Qh3# {[%clk 0:01:30.6]} 1-0

[Event "*** Titled Tuesday Blitz"]
[Site "Chess.com"]
[Date "2020.04.28"]
[Round "7"]
[White "garicradomir"]
[Black "NewBornNow"]
[Result "0-1"]
[WhiteElo "2367"]
[BlackElo "2627"]
[TimeControl "180+1"]
[EndTime "11:16:11 PDT"]
[Termination "NewBornNow won by resignation"]

1. e4 {[%clk 0:03:00.9]} 1... c5 {[%clk 0:02:54.8]} 2. Nf3 {[%clk 0:03:00.8]}
2... d6 {[%clk 0:02:54.4]} 3. Bb5+ {[%clk 0:02:59.4]} 3... Nd7 {[%clk
0:02:52.7]} 4. Ba4 {[%clk 0:02:58.5]} 4... Nf6 {[%clk 0:02:50.3]} 5. O-O {[%clk
0:02:57.8]} 5... Nxe4 {[%clk 0:02:49.1]} 6. d4 {[%clk 0:02:51.5]} 6... cxd4
{[%clk 0:02:46.2]} 7. Re1 {[%clk 0:02:49.3]} 7... Nc5 {[%clk 0:02:44.6]} 8. Qxd4
{[%clk 0:02:46.1]} 8... Nxa4 {[%clk 0:02:42.7]} 9. Qxa4 {[%clk 0:02:46.1]} 9...
e6 {[%clk 0:02:42.5]} 10. c4 {[%clk 0:02:35.7]} 10... Be7 {[%clk 0:02:41.7]} 11.
Nc3 {[%clk 0:02:33.5]} 11... O-O {[%clk 0:02:40.9]} 12. Bf4 {[%clk 0:02:33]}
12... e5 {[%clk 0:02:33.6]} 13. Be3 {[%clk 0:02:29.2]} 13... f5 {[%clk
0:02:23.5]} 14. Rad1 {[%clk 0:02:24.6]} 14... f4 {[%clk 0:02:21.5]} 15. Bc1
{[%clk 0:02:22.6]} 15... Nc5 {[%clk 0:02:12.3]} 16. Qa3 {[%clk 0:02:18.2]} 16...
Bg4 {[%clk 0:01:38.3]} 17. Nd5 {[%clk 0:02:17.9]} 17... a5 {[%clk 0:01:23]} 18.
Rd2 {[%clk 0:02:06.9]} 18... e4 {[%clk 0:01:19.5]} 19. Ne5 {[%clk 0:02:06.5]}
19... dxe5 {[%clk 0:01:14.8]} 20. Nf6+ {[%clk 0:02:02.6]} 20... gxf6 {[%clk
0:01:11.7]} 21. Rxd8 {[%clk 0:02:03.5]} 21... Rfxd8 {[%clk 0:01:10.9]} 22. h3
{[%clk 0:01:57.4]} 22... Bh5 {[%clk 0:01:09.2]} 23. g4 {[%clk 0:01:46.1]} 23...
Bf7 {[%clk 0:01:03.7]} 24. Kh2 {[%clk 0:01:38.1]} 24... Rd3 {[%clk 0:00:57.5]}
25. b3 {[%clk 0:01:35.3]} 25... Bf8 {[%clk 0:00:54.1]} 26. Qb2 {[%clk
0:01:28.4]} 26... Rf3 {[%clk 0:00:53.2]} 27. Kg2 {[%clk 0:01:27.3]} 27... Nd3
{[%clk 0:00:51.5]} 28. Qe2 {[%clk 0:01:22.2]} 28... Rxf2+ {[%clk 0:00:51.4]} 0-1

[Event "*** Titled Tuesday Blitz"]
[Site "Chess.com"]
[Date "2020.04.28"]
[Round "7"]
[White "Valuebet2000"]
[Black "StephenDedalus83"]
[Result "0-1"]
[WhiteElo "2573"]
[BlackElo "2789"]
[TimeControl "180+1"]
[EndTime "11:16:15 PDT"]
[Termination "StephenDedalus83 won by resignation"]

1. d4 {[%clk 0:03:00.9]} 1... g6 {[%clk 0:02:59.7]} 2. e4 {[%clk 0:02:59.6]}
2... Bg7 {[%clk 0:03:00]} 3. Be3 {[%clk 0:02:59.5]} 3... d6 {[%clk 0:03:00.2]}
4. f3 {[%clk 0:02:59]} 4... Nd7 {[%clk 0:02:54.2]} 5. Qd2 {[%clk 0:02:58.8]}
5... c5 {[%clk 0:02:52.1]} 6. Nc3 {[%clk 0:02:43.8]} 6... cxd4 {[%clk 0:02:51]}
7. Bxd4 {[%clk 0:02:44.7]} 7... Ngf6 {[%clk 0:02:51.2]} 8. Bc4 {[%clk
0:02:40.4]} 8... O-O {[%clk 0:02:50.6]} 9. Nge2 {[%clk 0:02:40.2]} 9... a6
{[%clk 0:02:49.3]} 10. a4 {[%clk 0:02:39.1]} 10... b6 {[%clk 0:02:42.8]} 11. O-O
{[%clk 0:02:36.2]} 11... Bb7 {[%clk 0:02:42.8]} 12. Be3 {[%clk 0:02:31.1]} 12...
Ne5 {[%clk 0:02:40.6]} 13. Bb3 {[%clk 0:02:27.2]} 13... Rc8 {[%clk 0:02:40.7]}
14. Nd4 {[%clk 0:02:23.5]} 14... Nc4 {[%clk 0:02:40]} 15. Bxc4 {[%clk
0:02:23.8]} 15... Rxc4 {[%clk 0:02:40.7]} 16. b3 {[%clk 0:02:24.4]} 16... Rc8
{[%clk 0:02:39.5]} 17. Nce2 {[%clk 0:02:21.8]} 17... Nd7 {[%clk 0:02:36.5]} 18.
c4 {[%clk 0:02:16.8]} 18... Nc5 {[%clk 0:02:36.1]} 19. Rab1 {[%clk 0:02:12.6]}
19... a5 {[%clk 0:02:36]} 20. Nb5 {[%clk 0:02:10.3]} 20... Qd7 {[%clk 0:02:26]}
21. Bd4 {[%clk 0:02:09.1]} 21... f6 {[%clk 0:02:11.7]} 22. Ba1 {[%clk
0:02:05.8]} 22... Rcd8 {[%clk 0:02:10.2]} 23. Nec3 {[%clk 0:02:05.5]} 23... Bc6
{[%clk 0:01:55.3]} 24. Nd5 {[%clk 0:02:03.8]} 24... Qb7 {[%clk 0:01:55.3]} 25.
h4 {[%clk 0:01:52.3]} 25... Rf7 {[%clk 0:01:54.4]} 26. h5 {[%clk 0:01:50.9]}
26... gxh5 {[%clk 0:01:54.1]} 27. Nf4 {[%clk 0:01:48.7]} 27... Bh6 {[%clk
0:01:53.3]} 28. Bd4 {[%clk 0:01:37.6]} 28... e5 {[%clk 0:01:52.8]} 29. Be3
{[%clk 0:01:35]} 29... exf4 {[%clk 0:01:52.3]} 30. Bxf4 {[%clk 0:01:35.3]} 30...
Bxf4 {[%clk 0:01:52]} 31. Qxf4 {[%clk 0:01:36.2]} 31... Bxb5 {[%clk 0:01:52.2]}
32. axb5 {[%clk 0:01:34.5]} 32... Qe7 {[%clk 0:01:52.3]} 33. b4 {[%clk
0:01:30.4]} 33... axb4 {[%clk 0:01:51.5]} 34. Rxb4 {[%clk 0:01:31.3]} 34... Qe5
{[%clk 0:01:51.8]} 35. Qh4 {[%clk 0:01:31.7]} 35... Qg5 {[%clk 0:01:51]} 36. Qh2
{[%clk 0:01:31.4]} 36... h4 {[%clk 0:01:50.8]} 37. Rd1 {[%clk 0:01:30.7]} 37...
Rg7 {[%clk 0:01:50.4]} 38. Rb2 {[%clk 0:01:30.6]} 38... Qg3 {[%clk 0:01:49.5]}
39. Rbd2 {[%clk 0:01:29.4]} 39... Qxf3 {[%clk 0:01:43.5]} 40. Rxd6 {[%clk
0:01:27.1]} 40... Qxd1+ {[%clk 0:01:40.4]} 41. Rxd1 {[%clk 0:01:28]} 41... Rxd1+
{[%clk 0:01:39.9]} 42. Kf2 {[%clk 0:01:28.9]} 42... Nxe4+ {[%clk 0:01:36]} 43.
Ke3 {[%clk 0:01:28.6]} 43... Ng3 {[%clk 0:01:35.2]} 44. Qh3 {[%clk 0:01:28.9]}
44... Re7+ {[%clk 0:01:27.8]} 45. Kf4 {[%clk 0:01:28]} 45... Rd4+ {[%clk
0:01:26]} 46. Kf3 {[%clk 0:01:28.3]} 46... f5 {[%clk 0:01:25.1]} 0-1

[Event "*** Titled Tuesday Blitz"]
[Site "Chess.com"]
[Date "2020.04.28"]
[Round "7"]
[White "cukin84"]
[Black "tteshan"]
[Result "1-0"]
[WhiteElo "2095"]
[BlackElo "2230"]
[TimeControl "180+1"]
[EndTime "11:16:21 PDT"]
[Termination "cukin84 won by resignation"]

1. e4 {[%clk 0:02:58.1]} 1... c6 {[%clk 0:02:54.4]} 2. d4 {[%clk 0:02:57.4]}
2... d5 {[%clk 0:02:54.2]} 3. exd5 {[%clk 0:02:56]} 3... cxd5 {[%clk 0:02:53.4]}
4. Bd3 {[%clk 0:02:56]} 4... Nf6 {[%clk 0:02:50]} 5. h3 {[%clk 0:02:54.3]} 5...
Nc6 {[%clk 0:02:48.5]} 6. c3 {[%clk 0:02:53.8]} 6... e6 {[%clk 0:02:45.7]} 7.
Nf3 {[%clk 0:02:53.3]} 7... Bd6 {[%clk 0:02:44.8]} 8. O-O {[%clk 0:02:52.6]}
8... O-O {[%clk 0:02:44.2]} 9. Re1 {[%clk 0:02:50.9]} 9... a6 {[%clk 0:02:42.5]}
10. Nbd2 {[%clk 0:02:49.3]} 10... b5 {[%clk 0:02:42]} 11. a3 {[%clk 0:02:49]}
11... Bb7 {[%clk 0:02:40.8]} 12. Ne5 {[%clk 0:02:48.4]} 12... Qc7 {[%clk
0:02:37.5]} 13. f4 {[%clk 0:02:47.2]} 13... Rac8 {[%clk 0:02:30]} 14. Ndf3
{[%clk 0:02:46.8]} 14... Na5 {[%clk 0:02:21.3]} 15. Bc2 {[%clk 0:02:39.9]} 15...
Ne4 {[%clk 0:02:18.9]} 16. Bxe4 {[%clk 0:02:25.1]} 16... dxe4 {[%clk 0:02:19.8]}
17. Ng5 {[%clk 0:02:25]} 17... f6 {[%clk 0:01:31.5]} 18. Nxe6 {[%clk 0:02:23]}
18... Qe7 {[%clk 0:01:25]} 19. Nxf8 {[%clk 0:02:08.7]} 19... fxe5 {[%clk
0:01:24.3]} 20. dxe5 {[%clk 0:02:06.5]} 20... Bb8 {[%clk 0:01:13.7]} 21. b4
{[%clk 0:01:48.8]} 21... Nc4 {[%clk 0:01:05.4]} 22. Qd7 {[%clk 0:01:45]} 22...
Ba7+ {[%clk 0:00:54.5]} 23. Kh2 {[%clk 0:01:42.4]} 23... Kxf8 {[%clk 0:00:53.3]}
24. Qf5+ {[%clk 0:01:37.1]} 24... Kg8 {[%clk 0:00:47.5]} 25. a4 {[%clk
0:01:36.6]} 25... Bf2 {[%clk 0:00:43.3]} 26. Rd1 {[%clk 0:01:34]} 26... Bc6
{[%clk 0:00:41.2]} 27. Qxc8+ {[%clk 0:01:31.7]} 27... Kf7 {[%clk 0:00:40.6]} 28.
Qxc6 {[%clk 0:01:31.3]} 28... Qh4 {[%clk 0:00:34]} 29. Rd7+ {[%clk 0:01:29.4]}
1-0

[Event "*** Titled Tuesday Blitz"]
[Site "Chess.com"]
[Date "2020.04.28"]
[Round "7"]
[White "KarstenHansch"]
[Black "Eliwood44"]
[Result "0-1"]
[WhiteElo "2427"]
[BlackElo "2329"]
[TimeControl "180+1"]
[EndTime "11:16:22 PDT"]
[Termination "Eliwood44 won by resignation"]

1. e4 {[%clk 0:03:00.9]} 1... e5 {[%clk 0:02:59.6]} 2. Nf3 {[%clk 0:03:01.2]}
2... Nc6 {[%clk 0:02:59]} 3. Bb5 {[%clk 0:03:01.2]} 3... a6 {[%clk 0:02:55.5]}
4. Ba4 {[%clk 0:03:01.2]} 4... d6 {[%clk 0:02:55.8]} 5. Bxc6+ {[%clk 0:02:47.7]}
5... bxc6 {[%clk 0:02:50.9]} 6. d4 {[%clk 0:02:48.3]} 6... exd4 {[%clk 0:02:51]}
7. Qxd4 {[%clk 0:02:46.3]} 7... c5 {[%clk 0:02:48]} 8. Qd3 {[%clk 0:02:45.9]}
8... Nf6 {[%clk 0:02:28.5]} 9. O-O {[%clk 0:02:41.2]} 9... Be7 {[%clk
0:02:25.3]} 10. Nc3 {[%clk 0:02:27.8]} 10... O-O {[%clk 0:02:19.9]} 11. Nd5
{[%clk 0:02:27.1]} 11... Nxd5 {[%clk 0:02:18.2]} 12. exd5 {[%clk 0:02:26.8]}
12... a5 {[%clk 0:02:14.9]} 13. c4 {[%clk 0:02:24.3]} 13... Bf6 {[%clk
0:02:12.7]} 14. Rb1 {[%clk 0:02:13]} 14... g6 {[%clk 0:02:11.1]} 15. Bd2 {[%clk
0:02:11.1]} 15... Bf5 {[%clk 0:02:10.1]} 16. Qa3 {[%clk 0:02:06.1]} 16... Bxb1
{[%clk 0:02:08.6]} 17. Rxb1 {[%clk 0:02:07]} 17... Re8 {[%clk 0:02:07.7]} 18.
Qd3 {[%clk 0:01:57.4]} 18... a4 {[%clk 0:02:00.7]} 19. Kf1 {[%clk 0:01:44]}
19... Rb8 {[%clk 0:01:48.2]} 20. Qc2 {[%clk 0:01:35.7]} 20... Qd7 {[%clk
0:01:46.1]} 21. Ne1 {[%clk 0:01:19.4]} 21... Re7 {[%clk 0:00:47.5]} 22. Nd3
{[%clk 0:01:14.2]} 22... Qf5 {[%clk 0:00:43.8]} 23. Ne1 {[%clk 0:01:08.9]} 23...
Qxc2 {[%clk 0:00:42.1]} 24. Nd3 {[%clk 0:01:09.8]} 24... Qxb1+ {[%clk 0:00:40]}
0-1

[Event "*** Titled Tuesday Blitz"]
[Site "Chess.com"]
[Date "2020.04.28"]
[Round "7"]
[White "TheNomNomFactor"]
[Black "WhiteCapital80"]
[Result "1-0"]
[WhiteElo "2398"]
[BlackElo "2400"]
[TimeControl "180+1"]
[EndTime "11:16:24 PDT"]
[Termination "TheNomNomFactor won by resignation"]

1. e4 {[%clk 0:03:00.9]} 1... e6 {[%clk 0:03:00.2]} 2. d4 {[%clk 0:02:58.4]}
2... d5 {[%clk 0:03:00.3]} 3. Nc3 {[%clk 0:02:59]} 3... Nf6 {[%clk 0:03:00]} 4.
Bg5 {[%clk 0:02:58.4]} 4... dxe4 {[%clk 0:02:59.8]} 5. Nxe4 {[%clk 0:02:59.3]}
5... Nbd7 {[%clk 0:02:59.7]} 6. Nf3 {[%clk 0:02:58.9]} 6... Be7 {[%clk
0:02:59.8]} 7. Nxf6+ {[%clk 0:02:58.5]} 7... Nxf6 {[%clk 0:02:59]} 8. Bd3 {[%clk
0:02:53.1]} 8... b6 {[%clk 0:02:59.1]} 9. O-O {[%clk 0:02:48.7]} 9... Bb7 {[%clk
0:02:57]} 10. c3 {[%clk 0:02:47.2]} 10... O-O {[%clk 0:02:56.6]} 11. Qe2 {[%clk
0:02:46.2]} 11... c5 {[%clk 0:02:50.7]} 12. dxc5 {[%clk 0:02:45.2]} 12... bxc5
{[%clk 0:02:50.4]} 13. Rad1 {[%clk 0:02:45.3]} 13... Qc7 {[%clk 0:02:49.3]} 14.
Ne5 {[%clk 0:02:33]} 14... Rfd8 {[%clk 0:02:45.6]} 15. Rfe1 {[%clk 0:02:08.7]}
15... Rac8 {[%clk 0:02:23.4]} 16. Nxf7 {[%clk 0:01:41.5]} 16... Qc6 {[%clk
0:02:23.2]} 17. Be4 {[%clk 0:01:21]} 17... Qxe4 {[%clk 0:02:21.8]} 18. Qxe4
{[%clk 0:01:16.7]} 18... Bxe4 {[%clk 0:01:59.1]} 19. Nxd8 {[%clk 0:01:13.4]}
19... Bd5 {[%clk 0:01:46.7]} 20. Nxe6 {[%clk 0:01:11.3]} 20... Kf7 {[%clk
0:01:43.6]} 21. Nf4 {[%clk 0:01:03.2]} 21... Bxa2 {[%clk 0:01:40.2]} 22. Rd7
{[%clk 0:01:00]} 22... Re8 {[%clk 0:01:37.1]} 23. Rxa7 {[%clk 0:00:53.9]} 23...
Bb3 {[%clk 0:01:35.3]} 24. Rb7 {[%clk 0:00:45.6]} 24... Bc4 {[%clk 0:01:34.6]}
25. b3 {[%clk 0:00:45.4]} 25... Ba6 {[%clk 0:01:28.1]} 26. Ra7 {[%clk
0:00:45.4]} 26... Bc8 {[%clk 0:01:27.4]} 27. Bxf6 {[%clk 0:00:44]} 27... gxf6
{[%clk 0:01:22.1]} 28. Nd5 {[%clk 0:00:41.4]} 28... Be6 {[%clk 0:01:22.3]} 29.
Nxe7 {[%clk 0:00:41.6]} 29... Rxe7 {[%clk 0:01:21.9]} 30. Rxe7+ {[%clk
0:00:42.2]} 30... Kxe7 {[%clk 0:01:22.4]} 31. b4 {[%clk 0:00:41.8]} 31... cxb4
{[%clk 0:01:22.3]} 32. cxb4 {[%clk 0:00:42.7]} 32... Kd6 {[%clk 0:01:22.9]} 33.
Rxe6+ {[%clk 0:00:41.4]} 1-0

[Event "*** Titled Tuesday Blitz"]
[Site "Chess.com"]
[Date "2020.04.28"]
[Round "7"]
[White "BeanScreen"]
[Black "MariaFominykh"]
[Result "1-0"]
[WhiteElo "2572"]
[BlackElo "2397"]
[TimeControl "180+1"]
[EndTime "11:16:26 PDT"]
[Termination "BeanScreen won by resignation"]

1. e4 {[%clk 0:03:00.5]} 1... d6 {[%clk 0:02:59.2]} 2. d4 {[%clk 0:03:00.8]}
2... Nf6 {[%clk 0:02:59.8]} 3. Nc3 {[%clk 0:03:01.5]} 3... e5 {[%clk 0:03:00]}
4. Nf3 {[%clk 0:03:01.6]} 4... Nbd7 {[%clk 0:02:59.5]} 5. Bc4 {[%clk 0:03:01.6]}
5... Be7 {[%clk 0:02:59.8]} 6. O-O {[%clk 0:03:02]} 6... O-O {[%clk 0:02:59.9]}
7. Qe2 {[%clk 0:03:02.4]} 7... c6 {[%clk 0:02:59.3]} 8. Rd1 {[%clk 0:03:02.8]}
8... b5 {[%clk 0:02:57]} 9. dxe5 {[%clk 0:03:03.2]} 9... dxe5 {[%clk 0:02:48.5]}
10. Nxe5 {[%clk 0:03:04.1]} 10... bxc4 {[%clk 0:02:45.8]} 11. Nxc6 {[%clk
0:03:04.2]} 11... Qe8 {[%clk 0:02:45.5]} 12. e5 {[%clk 0:03:04.9]} 12... Ng4
{[%clk 0:02:33.5]} 13. Qxg4 {[%clk 0:03:04.7]} 13... Nxe5 {[%clk 0:02:32.9]} 14.
Nxe7+ {[%clk 0:03:04.6]} 14... Qxe7 {[%clk 0:02:31.5]} 15. Qg3 {[%clk
0:03:04.2]} 15... Ng6 {[%clk 0:02:25.5]} 16. Nd5 {[%clk 0:03:00.4]} 16... Qb7
{[%clk 0:02:19.7]} 17. Be3 {[%clk 0:02:44.1]} 17... Be6 {[%clk 0:02:05.5]} 18.
Nc7 {[%clk 0:02:41.8]} 18... Rac8 {[%clk 0:01:56.9]} 19. Nxe6 {[%clk 0:02:41.8]}
19... fxe6 {[%clk 0:01:56.9]} 20. Bd4 {[%clk 0:02:41.1]} 20... Nf4 {[%clk
0:01:46.7]} 21. Re1 {[%clk 0:02:41.3]} 21... Rf5 {[%clk 0:01:29.2]} 22. f3
{[%clk 0:02:31.8]} 22... h6 {[%clk 0:01:27.6]} 23. Re4 {[%clk 0:02:19.5]} 23...
e5 {[%clk 0:00:59.8]} 24. Bxe5 {[%clk 0:02:11.5]} 24... Nh5 {[%clk 0:00:48.4]}
25. Qg6 {[%clk 0:02:01]} 25... Rg5 {[%clk 0:00:46]} 26. Qe6+ {[%clk 0:02:00.9]}
26... Kh7 {[%clk 0:00:45.1]} 27. h4 {[%clk 0:01:39.6]} 27... Rg6 {[%clk
0:00:39.6]} 28. Qf5 {[%clk 0:01:39.8]} 28... Nf6 {[%clk 0:00:31.1]} 29. Bxf6
{[%clk 0:01:39.6]} 29... gxf6 {[%clk 0:00:31.1]} 30. h5 {[%clk 0:01:39.7]} 1-0